[Event "Meltwater Champions Chess Tour 2022: Chessable Masters | Prelims"]
[White "Harikrishna, Pentala"]
[Black "Jones, Gawain C B"]
[WhiteFideId "5007003"]
[BlackFideId "409561"]
[WhiteElo "2624"]
[BlackElo "2630"]
[Result "1-0"]
[Round "08"]
[TimeControl "900+10"]
[Date "2022.05.20"]
[WhiteClock "0:04:36"]
[BlackClock "0:02:53"]

1. e4 {[%clk 0:15:20]}  e5 {[%clk 0:15:20]} 2. Nf3 {[%clk 0:15:28]}  Nc6 {[%clk 0:15:29]} 3. Bb5 {[%clk 0:15:37]}  a6 {[%clk 0:15:38]} 4. Ba4 {[%clk 0:15:46]}  Nf6 {[%clk 0:15:47]} 5. O-O {[%clk 0:15:55]}  b5 {[%clk 0:15:56]} 6. Bb3 {[%clk 0:16:03]}  Bc5 {[%clk 0:16:05]} 7. a4 {[%clk 0:16:10]}  Rb8 {[%clk 0:16:14]} 8. c3 {[%clk 0:16:19]}  d6 {[%clk 0:16:23]} 9. d4 {[%clk 0:16:28]}  Bb6 {[%clk 0:16:32]} 10. a5 {[%clk 0:16:36]}  Ba7 {[%clk 0:16:41]} 11. h3 {[%clk 0:16:45]}  Bb7 {[%clk 0:15:54]} 12. Be3 {[%clk 0:16:42]}  Nxe4 {[%clk 0:14:38]} 13. Re1 {[%clk 0:16:48]}  Ne7 {[%clk 0:14:18]} 14. Nbd2 {[%clk 0:15:11]}  Nxd2 {[%clk 0:13:07]} 15. Bxd2 {[%clk 0:15:17]}  O-O {[%clk 0:11:28]} 16. dxe5 {[%clk 0:15:12]}  dxe5 {[%clk 0:11:08]} 17. Nxe5 {[%clk 0:13:55]}  Ng6 {[%clk 0:10:56]} 18. Be3 {[%clk 0:13:16]}  Nxe5 {[%clk 0:08:52]} 19. Qxd8 {[%clk 0:13:22]}  Rbxd8 {[%clk 0:09:00]} 20. Bxa7 {[%clk 0:13:31]}  Nc4 {[%clk 0:07:20]} 21. Bxc4 {[%clk 0:09:56]}  bxc4 {[%clk 0:07:27]} 22. Re7 {[%clk 0:10:05]}  Rd2 {[%clk 0:06:28]} 23. Rxc7 {[%clk 0:09:49]}  Rxb2 {[%clk 0:06:37]} 24. Rd1 {[%clk 0:08:56]}  h5 {[%clk 0:05:56]} 25. Bc5 {[%clk 0:08:23]}  Re8 {[%clk 0:03:16]} 26. Rdd7 {[%clk 0:08:22]}  Rb5 {[%clk 0:03:01]} 27. Rxf7 {[%clk 0:07:20]}  Rxc5 {[%clk 0:02:26]} 28. Rxg7+ {[%clk 0:07:00]}  Kh8 {[%clk 0:02:35]} 29. Rh7+ {[%clk 0:07:04]}  Kg8 {[%clk 0:02:44]} 30. Rcg7+ {[%clk 0:07:05]}  Kf8 {[%clk 0:02:53]} 31. Rxb7 {[%clk 0:07:12]}  Kg8 {[%clk 0:03:02]} 32. Rbg7+ {[%clk 0:06:05]}  Kf8 {[%clk 0:03:11]} 33. Rc7 {[%clk 0:05:47]}  Rxc7 {[%clk 0:03:18]} 34. Rxc7 {[%clk 0:05:56]}  Re5 {[%clk 0:03:27]} 35. Rxc4 {[%clk 0:06:04]}  Rxa5 {[%clk 0:03:35]} 36. Rc7 {[%clk 0:06:01]}  Ke8 {[%clk 0:03:08]} 37. g4 {[%clk 0:06:01]}  Kd8 {[%clk 0:03:15]} 38. Ra7 {[%clk 0:05:53]}  Kc8 {[%clk 0:03:14]} 39. Kg2 {[%clk 0:05:57]}  Kb8 {[%clk 0:03:20]} 40. Rh7 {[%clk 0:05:56]}  hxg4 {[%clk 0:03:23]} 41. hxg4 {[%clk 0:06:05]}  Rc5 {[%clk 0:03:31]} 42. f4 {[%clk 0:06:06]}  Rc4 {[%clk 0:03:16]} 43. Rf7 {[%clk 0:05:13]}  Kc8 {[%clk 0:03:24]} 44. g5 {[%clk 0:05:18]}  Kd8 {[%clk 0:02:53]} 45. Kg3 {[%clk 0:04:36]} 1-0


[Site "http://www.chessbomb.com"]

[Event "Meltwater Champions Chess Tour 2022: Chessable Masters | Prelims"]
[White "Anton Guijarro, David"]
[Black "Harikrishna, Pentala"]
[WhiteFideId "2285525"]
[BlackFideId "5007003"]
[WhiteElo "2633"]
[BlackElo "2624"]
[Result "1/2-1/2"]
[Round "09"]
[TimeControl "900+10"]
[Date "2022.05.21"]
[WhiteClock "0:01:46"]
[BlackClock "0:02:27"]

1. e4 {[%clk 0:15:20]}  e5 {[%clk 0:15:20]} 2. Nf3 {[%clk 0:15:25]}  Nc6 {[%clk 0:15:28]} 3. Bb5 {[%clk 0:15:32]}  a6 {[%clk 0:15:36]} 4. Ba4 {[%clk 0:15:40]}  Nf6 {[%clk 0:15:44]} 5. d3 {[%clk 0:15:47]}  Bc5 {[%clk 0:15:44]} 6. Nc3 {[%clk 0:15:42]}  d6 {[%clk 0:14:48]} 7. Bxc6+ {[%clk 0:15:34]}  bxc6 {[%clk 0:14:57]} 8. Be3 {[%clk 0:15:40]}  Bb4 {[%clk 0:14:42]} 9. O-O {[%clk 0:15:36]}  Bxc3 {[%clk 0:14:46]} 10. bxc3 {[%clk 0:15:45]}  h6 {[%clk 0:14:02]} 11. h3 {[%clk 0:15:27]}  O-O {[%clk 0:14:09]} 12. Nd2 {[%clk 0:15:14]}  d5 {[%clk 0:13:53]} 13. Qf3 {[%clk 0:15:09]}  Re8 {[%clk 0:13:47]} 14. Nb3 {[%clk 0:14:50]}  Be6 {[%clk 0:13:21]} 15. Nc5 {[%clk 0:13:54]}  dxe4 {[%clk 0:12:32]} 16. Nxe4 {[%clk 0:13:08]}  Nxe4 {[%clk 0:12:16]} 17. Qxe4 {[%clk 0:13:04]}  Qd5 {[%clk 0:11:45]} 18. Qh4 {[%clk 0:12:17]}  Bf5 {[%clk 0:11:03]} 19. Qg3 {[%clk 0:09:21]}  Re6 {[%clk 0:10:11]} 20. c4 {[%clk 0:08:25]}  Qd7 {[%clk 0:10:10]} 21. Kh2 {[%clk 0:08:06]}  Rae8 {[%clk 0:07:46]} 22. f3 {[%clk 0:06:48]}  Bg6 {[%clk 0:07:01]} 23. Bc5 {[%clk 0:05:10]}  Kh7 {[%clk 0:06:32]} 24. Rae1 {[%clk 0:05:03]}  f5 {[%clk 0:06:21]} 25. Rf2 {[%clk 0:04:16]}  Qf7 {[%clk 0:05:30]} 26. Rfe2 {[%clk 0:02:48]}  e4 {[%clk 0:05:35]} 27. f4 {[%clk 0:02:42]}  Bh5 {[%clk 0:03:30]} 28. Re3 {[%clk 0:02:48]}  exd3 {[%clk 0:03:34]} 29. cxd3 {[%clk 0:02:52]}  Rxe3 {[%clk 0:03:42]} 30. Rxe3 {[%clk 0:03:00]}  Rxe3 {[%clk 0:03:41]} 31. Qxe3 {[%clk 0:03:02]}  Qe8 {[%clk 0:03:49]} 32. Qxe8 {[%clk 0:02:46]}  Bxe8 {[%clk 0:03:57]} 33. Kg3 {[%clk 0:02:55]}  Kg8 {[%clk 0:03:20]} 34. Kh4 {[%clk 0:01:56]}  Kf7 {[%clk 0:03:10]} 35. g4 {[%clk 0:01:52]}  fxg4 {[%clk 0:02:11]} 36. hxg4 {[%clk 0:01:56]}  g5+ {[%clk 0:02:05]} 37. fxg5 {[%clk 0:01:57]}  Kg6 {[%clk 0:02:14]} 38. gxh6 {[%clk 0:01:42]}  Kxh6 {[%clk 0:02:23]} 39. Be3+ {[%clk 0:01:23]}  Kh7 {[%clk 0:02:26]} 40. Kg5 {[%clk 0:01:09]}  Bg6 {[%clk 0:01:45]} 41. Kf6 {[%clk 0:00:56]}  Bxd3 {[%clk 0:01:46]} 42. c5 {[%clk 0:01:03]}  a5 {[%clk 0:01:44]} 43. a3 {[%clk 0:00:46]}  a4 {[%clk 0:01:46]} 44. g5 {[%clk 0:00:52]}  Be4 {[%clk 0:01:40]} 45. Ke7 {[%clk 0:00:58]}  Kg6 {[%clk 0:01:31]} 46. Kd7 {[%clk 0:01:04]}  Bd5 {[%clk 0:01:36]} 47. Kxc7 {[%clk 0:01:12]}  Be4 {[%clk 0:01:45]} 48. Kb6 {[%clk 0:01:20]}  Bd5 {[%clk 0:01:52]} 49. Ka5 {[%clk 0:01:28]}  Bb3 {[%clk 0:02:01]} 50. Kb6 {[%clk 0:01:37]}  Bd5 {[%clk 0:02:10]} 51. Ka5 {[%clk 0:01:45]}  Bb3 {[%clk 0:02:19]} 52. Kb6 {[%clk 0:01:46]}  Bd5 {[%clk 0:02:27]} 1/2-1/2


[Site "http://www.chessbomb.com"]

[Event "Meltwater Champions Chess Tour 2022: Chessable Masters | Prelims"]
[White "Ding, Liren"]
[Black "Praggnanandhaa, R"]
[WhiteFideId "8603677"]
[BlackFideId "25059530"]
[WhiteElo "2836"]
[BlackElo "1927"]
[Result "1-0"]
[Round "09"]
[TimeControl "900+10"]
[Date "2022.05.21"]
[WhiteClock "0:03:10"]
[BlackClock "0:00:11"]

1. d4 {[%clk 0:15:20]}  Nf6 {[%clk 0:15:20]} 2. c4 {[%clk 0:15:27]}  e6 {[%clk 0:15:28]} 3. Nc3 {[%clk 0:15:37]}  Bb4 {[%clk 0:15:36]} 4. Nf3 {[%clk 0:15:46]}  O-O {[%clk 0:15:34]} 5. e3 {[%clk 0:15:55]}  d5 {[%clk 0:15:39]} 6. Bd2 {[%clk 0:16:02]}  b6 {[%clk 0:15:45]} 7. cxd5 {[%clk 0:16:11]}  exd5 {[%clk 0:15:54]} 8. Rc1 {[%clk 0:16:21]}  Bd6 {[%clk 0:15:22]} 9. Nb5 {[%clk 0:14:11]}  c5 {[%clk 0:15:30]} 10. dxc5 {[%clk 0:14:07]}  bxc5 {[%clk 0:15:38]} 11. Be2 {[%clk 0:10:04]}  Be7 {[%clk 0:14:48]} 12. O-O {[%clk 0:09:40]}  a6 {[%clk 0:13:08]} 13. Na3 {[%clk 0:09:03]}  Be6 {[%clk 0:11:59]} 14. Qa4 {[%clk 0:08:23]}  Nbd7 {[%clk 0:11:48]} 15. Rfd1 {[%clk 0:08:27]}  Ne4 {[%clk 0:09:37]} 16. Nb1 {[%clk 0:08:05]}  Qb8 {[%clk 0:06:10]} 17. Nc3 {[%clk 0:07:19]}  Ndf6 {[%clk 0:05:45]} 18. Qc2 {[%clk 0:06:33]}  Rd8 {[%clk 0:05:14]} 19. Be1 {[%clk 0:06:37]}  Qb7 {[%clk 0:05:01]} 20. b3 {[%clk 0:06:27]}  Rac8 {[%clk 0:04:32]} 21. Nxe4 {[%clk 0:06:22]}  Nxe4 {[%clk 0:04:36]} 22. Ba5 {[%clk 0:06:26]}  Rd6 {[%clk 0:04:11]} 23. Bd3 {[%clk 0:06:07]}  f5 {[%clk 0:02:54]} 24. Qe2 {[%clk 0:05:23]}  Bf6 {[%clk 0:02:40]} 25. Rc2 {[%clk 0:05:18]}  Rdc6 {[%clk 0:02:29]} 26. h3 {[%clk 0:05:20]}  Nd6 {[%clk 0:02:23]} 27. Qe1 {[%clk 0:05:04]}  Ne4 {[%clk 0:01:36]} 28. Bf1 {[%clk 0:04:58]}  Qa7 {[%clk 0:01:05]} 29. b4 {[%clk 0:04:45]}  d4 {[%clk 0:00:50]} 30. bxc5 {[%clk 0:04:37]}  dxe3 {[%clk 0:00:56]} 31. Qxe3 {[%clk 0:04:44]}  Qf7 {[%clk 0:00:24]} 32. Bb4 {[%clk 0:03:48]}  Bxa2 {[%clk 0:00:20]} 33. Nd4 {[%clk 0:03:50]}  Bxd4 {[%clk 0:00:25]} 34. Rxd4 {[%clk 0:03:47]}  Be6 {[%clk 0:00:30]} 35. Bd3 {[%clk 0:03:38]}  Nf6 {[%clk 0:00:29]} 36. Ba3 {[%clk 0:03:23]}  h6 {[%clk 0:00:17]} 37. Rc1 {[%clk 0:03:11]}  Kh8 {[%clk 0:00:16]} 38. Bc2 {[%clk 0:03:12]}  Bd7 {[%clk 0:00:14]} 39. Bb3 {[%clk 0:03:14]}  Qg6 {[%clk 0:00:17]} 40. Qd3 {[%clk 0:03:09]}  R6c7 {[%clk 0:00:20]} 41. Rd6 {[%clk 0:03:06]}  Bc6 {[%clk 0:00:26]} 42. f3 {[%clk 0:03:18]}  Qg5 {[%clk 0:00:26]} 43. Bb2 {[%clk 0:03:21]}  Nh5 {[%clk 0:00:30]} 44. h4 {[%clk 0:03:08]}  Qf4 {[%clk 0:00:11]} 45. Rc4 {[%clk 0:03:10]} 1-0


[Site "http://www.chessbomb.com"]

[Event "Meltwater Champions Chess Tour 2022: Chessable Masters | Prelims"]
[White "Hansen, Eric"]
[Black "Grandelius, Nils"]
[WhiteFideId "2606771"]
[BlackFideId "1710400"]
[WhiteElo "2579"]
[BlackElo "2652"]
[Result "1-0"]
[Round "09"]
[TimeControl "900+10"]
[Date "2022.05.21"]
[WhiteClock "0:00:18"]
[BlackClock "0:00:14"]

1. e4 {[%clk 0:15:20]}  c5 {[%clk 0:15:20]} 2. Nf3 {[%clk 0:15:27]}  d6 {[%clk 0:15:27]} 3. Bb5+ {[%clk 0:14:43]}  Bd7 {[%clk 0:15:25]} 4. Bxd7+ {[%clk 0:14:45]}  Qxd7 {[%clk 0:15:35]} 5. O-O {[%clk 0:14:34]}  Nf6 {[%clk 0:15:32]} 6. Re1 {[%clk 0:14:35]}  Nc6 {[%clk 0:15:22]} 7. c3 {[%clk 0:14:38]}  e6 {[%clk 0:15:28]} 8. d3 {[%clk 0:14:27]}  Be7 {[%clk 0:15:10]} 9. Nbd2 {[%clk 0:14:36]}  O-O {[%clk 0:14:58]} 10. a4 {[%clk 0:14:00]}  Ng4 {[%clk 0:11:56]} 11. d4 {[%clk 0:12:56]}  cxd4 {[%clk 0:12:01]} 12. cxd4 {[%clk 0:13:05]}  d5 {[%clk 0:10:58]} 13. e5 {[%clk 0:11:52]}  f6 {[%clk 0:10:26]} 14. h3 {[%clk 0:10:46]}  Nh6 {[%clk 0:10:32]} 15. Nb3 {[%clk 0:09:44]}  fxe5 {[%clk 0:08:32]} 16. Nxe5 {[%clk 0:09:51]}  Nxe5 {[%clk 0:08:38]} 17. Rxe5 {[%clk 0:10:01]}  Nf5 {[%clk 0:07:41]} 18. Nc5 {[%clk 0:09:36]}  Bxc5 {[%clk 0:07:04]} 19. dxc5 {[%clk 0:09:47]}  Ne7 {[%clk 0:03:15]} 20. Qg4 {[%clk 0:03:04]}  Rf6 {[%clk 0:03:22]} 21. Rg5 {[%clk 0:02:50]}  Nf5 {[%clk 0:02:40]} 22. Bf4 {[%clk 0:02:38]}  h6 {[%clk 0:02:14]} 23. Rg6 {[%clk 0:02:17]}  Rxg6 {[%clk 0:02:03]} 24. Qxg6 {[%clk 0:02:25]}  Qf7 {[%clk 0:02:13]} 25. Qg4 {[%clk 0:02:32]}  Rc8 {[%clk 0:01:59]} 26. b4 {[%clk 0:02:33]}  a5 {[%clk 0:02:02]} 27. Be5 {[%clk 0:02:37]}  Ne7 {[%clk 0:01:10]} 28. Ra3 {[%clk 0:00:33]}  Nc6 {[%clk 0:00:28]} 29. Bb2 {[%clk 0:00:42]}  axb4 {[%clk 0:00:29]} 30. Rf3 {[%clk 0:00:48]}  Qe7 {[%clk 0:00:36]} 31. Bxg7 {[%clk 0:00:54]}  h5 {[%clk 0:00:43]} 32. Qg6 {[%clk 0:01:01]}  Qxg7 {[%clk 0:00:12]} 33. Qxe6+ {[%clk 0:01:10]}  Kh7 {[%clk 0:00:22]} 34. Qf5+ {[%clk 0:00:58]}  Kh6 {[%clk 0:00:20]} 35. Qe6+ {[%clk 0:00:33]}  Kh7 {[%clk 0:00:24]} 36. Qf5+ {[%clk 0:00:13]}  Kh6 {[%clk 0:00:33]} 37. Qxc8 {[%clk 0:00:22]}  Nd4 {[%clk 0:00:43]} 38. Rf8 {[%clk 0:00:21]}  Kh7 {[%clk 0:00:17]} 39. Qe8 {[%clk 0:00:22]}  Ne2+ {[%clk 0:00:14]} 40. Kh2 {[%clk 0:00:18]} 1-0


[Site "http://www.chessbomb.com"]

[Event "Meltwater Champions Chess Tour 2022: Chessable Masters | Prelims"]
[White "Mamedyarov, Shakhriyar"]
[Black "Tari, Aryan"]
[WhiteFideId "13401319"]
[BlackFideId "1510045"]
[WhiteElo "2699"]
[BlackElo "2531"]
[Result "1/2-1/2"]
[Round "09"]
[TimeControl "900+10"]
[Date "2022.05.21"]
[WhiteClock "0:02:03"]
[BlackClock "0:01:54"]

1. d4 {[%clk 0:15:20]}  Nf6 {[%clk 0:15:20]} 2. c4 {[%clk 0:15:27]}  g6 {[%clk 0:15:28]} 3. Nc3 {[%clk 0:15:34]}  d5 {[%clk 0:15:36]} 4. Nf3 {[%clk 0:15:43]}  Bg7 {[%clk 0:15:45]} 5. h4 {[%clk 0:15:52]}  c5 {[%clk 0:15:26]} 6. dxc5 {[%clk 0:15:55]}  O-O {[%clk 0:15:16]} 7. cxd5 {[%clk 0:15:37]}  Na6 {[%clk 0:15:25]} 8. g3 {[%clk 0:14:48]}  Nxc5 {[%clk 0:15:26]} 9. Bg2 {[%clk 0:14:56]}  Bf5 {[%clk 0:14:30]} 10. Nd4 {[%clk 0:13:21]}  Be4 {[%clk 0:13:23]} 11. Nxe4 {[%clk 0:13:18]}  Ncxe4 {[%clk 0:12:13]} 12. Nb3 {[%clk 0:13:23]}  e6 {[%clk 0:10:56]} 13. d6 {[%clk 0:11:09]}  a5 {[%clk 0:09:45]} 14. Qd3 {[%clk 0:08:49]}  a4 {[%clk 0:08:49]} 15. Bxe4 {[%clk 0:08:56]}  Nxe4 {[%clk 0:08:53]} 16. Qxe4 {[%clk 0:09:06]}  axb3 {[%clk 0:09:01]} 17. a4 {[%clk 0:08:44]}  Qxd6 {[%clk 0:07:34]} 18. O-O {[%clk 0:07:58]}  Qa6 {[%clk 0:05:54]} 19. Ra3 {[%clk 0:07:38]}  Qc6 {[%clk 0:05:02]} 20. Qb4 {[%clk 0:06:24]}  Ra6 {[%clk 0:04:55]} 21. Rxb3 {[%clk 0:05:17]}  Rxa4 {[%clk 0:04:54]} 22. Qxb7 {[%clk 0:05:26]}  Qc2 {[%clk 0:04:28]} 23. Qb5 {[%clk 0:04:59]}  Rd4 {[%clk 0:03:34]} 24. Rc3 {[%clk 0:04:27]}  Qe4 {[%clk 0:03:41]} 25. Re3 {[%clk 0:03:49]}  Qc2 {[%clk 0:03:43]} 26. b3 {[%clk 0:02:41]}  Rd5 {[%clk 0:02:53]} 27. Qc4 {[%clk 0:01:00]}  Rc8 {[%clk 0:02:05]} 28. Qxc2 {[%clk 0:00:37]}  Rxc2 {[%clk 0:02:15]} 29. Re4 {[%clk 0:00:31]}  Rb5 {[%clk 0:01:46]} 30. Rd1 {[%clk 0:00:35]}  Rd5 {[%clk 0:01:54]} 31. Rf1 {[%clk 0:00:39]}  Rb5 {[%clk 0:02:02]} 32. b4 {[%clk 0:00:14]}  Bf8 {[%clk 0:01:04]} 33. Rd4 {[%clk 0:00:12]}  Be7 {[%clk 0:00:24]} 34. Bd2 {[%clk 0:00:16]}  Rd5 {[%clk 0:00:13]} 35. Rxd5 {[%clk 0:00:22]}  exd5 {[%clk 0:00:23]} 36. Rd1 {[%clk 0:00:31]}  Rb2 {[%clk 0:00:31]} 37. Bc3 {[%clk 0:00:35]}  Rb3 {[%clk 0:00:39]} 38. Rd3 {[%clk 0:00:42]}  Bxb4 {[%clk 0:00:38]} 39. Bxb4 {[%clk 0:00:51]}  Rxb4 {[%clk 0:00:48]} 40. Rxd5 {[%clk 0:00:59]}  h5 {[%clk 0:00:58]} 41. Kg2 {[%clk 0:01:07]}  Kg7 {[%clk 0:01:07]} 42. Kf3 {[%clk 0:01:13]}  Rb3+ {[%clk 0:01:16]} 43. e3 {[%clk 0:01:21]}  Rb4 {[%clk 0:01:25]} 44. Rd3 {[%clk 0:01:26]}  Ra4 {[%clk 0:01:34]} 45. e4 {[%clk 0:01:31]}  Ra2 {[%clk 0:01:41]} 46. Ke3 {[%clk 0:01:39]}  Ra1 {[%clk 0:01:50]} 47. f3 {[%clk 0:01:47]}  Rb1 {[%clk 0:01:55]} 48. Kf4 {[%clk 0:01:52]}  Rb6 {[%clk 0:01:59]} 49. Rd7 {[%clk 0:01:58]}  Rf6+ {[%clk 0:02:07]} 50. Ke3 {[%clk 0:02:06]}  Ra6 {[%clk 0:02:16]} 51. Rd3 {[%clk 0:01:33]}  Ra5 {[%clk 0:02:15]} 52. Kf4 {[%clk 0:01:33]}  Ra7 {[%clk 0:02:18]} 53. g4 {[%clk 0:01:35]}  hxg4 {[%clk 0:02:23]} 54. fxg4 {[%clk 0:01:45]}  Ra1 {[%clk 0:02:12]} 55. h5 {[%clk 0:01:12]}  Rh1 {[%clk 0:02:03]} 56. Rd5 {[%clk 0:01:01]}  gxh5 {[%clk 0:01:50]} 57. gxh5 {[%clk 0:01:08]}  Rf1+ {[%clk 0:01:45]} 58. Ke5 {[%clk 0:01:08]}  Kh6 {[%clk 0:01:39]} 59. Kd4 {[%clk 0:01:13]}  Rd1+ {[%clk 0:01:35]} 60. Ke5 {[%clk 0:01:09]}  Rf1 {[%clk 0:01:41]} 61. Kd6 {[%clk 0:01:18]}  Rf6+ {[%clk 0:01:30]} 62. Kc5 {[%clk 0:01:25]}  Rf1 {[%clk 0:01:35]} 63. Re5 {[%clk 0:01:26]}  Rh1 {[%clk 0:01:20]} 64. Kd6 {[%clk 0:01:26]}  Rxh5 {[%clk 0:01:27]} 65. Rxh5+ {[%clk 0:01:34]}  Kxh5 {[%clk 0:01:37]} 66. e5 {[%clk 0:01:43]}  Kg6 {[%clk 0:01:45]} 67. e6 {[%clk 0:01:53]}  fxe6 {[%clk 0:01:54]} 68. Kxe6 {[%clk 0:02:03]} 1/2-1/2


[Site "http://www.chessbomb.com"]

[Event "Meltwater Champions Chess Tour 2022: Chessable Masters | Prelims"]
[White "Van Foreest, Jorden"]
[Black "Giri, Anish"]
[WhiteFideId "1039784"]
[BlackFideId "24116068"]
[WhiteElo "2645"]
[BlackElo "2730"]
[Result "0-1"]
[Round "09"]
[TimeControl "900+10"]
[Date "2022.05.21"]
[WhiteClock "0:00:17"]
[BlackClock "0:00:28"]

1. Nf3 {[%clk 0:15:20]}  Nf6 {[%clk 0:15:20]} 2. b3 {[%clk 0:15:26]}  g6 {[%clk 0:15:14]} 3. Bb2 {[%clk 0:15:32]}  Bg7 {[%clk 0:15:23]} 4. g3 {[%clk 0:15:41]}  b5 {[%clk 0:15:26]} 5. Na3 {[%clk 0:15:28]}  b4 {[%clk 0:14:41]} 6. Nc4 {[%clk 0:15:32]}  a5 {[%clk 0:14:50]} 7. e4 {[%clk 0:14:46]}  O-O {[%clk 0:12:25]} 8. e5 {[%clk 0:14:48]}  Ne4 {[%clk 0:12:29]} 9. Bg2 {[%clk 0:14:36]}  d5 {[%clk 0:12:34]} 10. Ne3 {[%clk 0:13:26]}  c5 {[%clk 0:11:25]} 11. O-O {[%clk 0:11:30]}  Nc6 {[%clk 0:11:32]} 12. Re1 {[%clk 0:11:26]}  Be6 {[%clk 0:11:16]} 13. c4 {[%clk 0:09:19]}  bxc3 {[%clk 0:10:56]} 14. dxc3 {[%clk 0:09:28]}  a4 {[%clk 0:05:44]} 15. bxa4 {[%clk 0:09:30]}  Nxe5 {[%clk 0:04:40]} 16. Nxe5 {[%clk 0:08:57]}  Bxe5 {[%clk 0:04:50]} 17. Nxd5 {[%clk 0:09:06]}  Bxd5 {[%clk 0:04:52]} 18. Bxe4 {[%clk 0:09:14]}  Bxe4 {[%clk 0:05:01]} 19. Rxe4 {[%clk 0:09:15]}  Qxd1+ {[%clk 0:05:10]} 20. Rxd1 {[%clk 0:09:23]}  Bd6 {[%clk 0:05:19]} 21. Bc1 {[%clk 0:09:02]}  Ra6 {[%clk 0:04:01]} 22. Bg5 {[%clk 0:07:40]}  f6 {[%clk 0:03:48]} 23. Bf4 {[%clk 0:07:48]}  Bxf4 {[%clk 0:02:57]} 24. gxf4 {[%clk 0:07:51]}  Kf7 {[%clk 0:02:08]} 25. Rde1 {[%clk 0:06:39]}  Ra7 {[%clk 0:02:03]} 26. Kg2 {[%clk 0:06:22]}  Rd8 {[%clk 0:02:01]} 27. R1e2 {[%clk 0:06:15]}  Rd6 {[%clk 0:01:43]} 28. f5 {[%clk 0:04:21]}  gxf5 {[%clk 0:01:08]} 29. Rh4 {[%clk 0:04:29]}  Kg6 {[%clk 0:00:50]} 30. Re3 {[%clk 0:04:34]}  h6 {[%clk 0:00:28]} 31. Rg3+ {[%clk 0:02:00]}  Kf7 {[%clk 0:00:37]} 32. Rxh6 {[%clk 0:02:05]}  Rxa4 {[%clk 0:00:46]} 33. Rh7+ {[%clk 0:02:06]}  Ke6 {[%clk 0:00:55]} 34. h4 {[%clk 0:02:11]}  f4 {[%clk 0:00:26]} 35. Rf3 {[%clk 0:01:09]}  Rd8 {[%clk 0:00:24]} 36. Rg7 {[%clk 0:01:04]}  Rh8 {[%clk 0:00:21]} 37. Kh3 {[%clk 0:01:13]}  Kf5 {[%clk 0:00:25]} 38. Rxe7 {[%clk 0:01:19]}  Raa8 {[%clk 0:00:31]} 39. Rc7 {[%clk 0:00:17]}  Ke4 {[%clk 0:00:28]} 0-1


[Site "http://www.chessbomb.com"]

[Event "Meltwater Champions Chess Tour 2022: Chessable Masters | Prelims"]
[White "Mishra, Abhimanyu"]
[Black "Wei, Yi"]
[WhiteFideId "30920019"]
[BlackFideId "8603405"]
[WhiteElo "2524"]
[BlackElo "2752"]
[Result "1-0"]
[Round "09"]
[TimeControl "900+10"]
[Date "2022.05.21"]
[WhiteClock "0:00:12"]
[BlackClock "0:00:23"]

1. e4 {[%clk 0:15:20]}  c5 {[%clk 0:15:20]} 2. Nf3 {[%clk 0:15:28]}  d6 {[%clk 0:15:29]} 3. d4 {[%clk 0:15:37]}  cxd4 {[%clk 0:15:38]} 4. Nxd4 {[%clk 0:15:46]}  Nf6 {[%clk 0:15:47]} 5. Nc3 {[%clk 0:15:55]}  a6 {[%clk 0:15:56]} 6. Be2 {[%clk 0:16:04]}  e5 {[%clk 0:16:05]} 7. Nb3 {[%clk 0:16:13]}  Be7 {[%clk 0:16:14]} 8. Be3 {[%clk 0:16:20]}  Be6 {[%clk 0:16:20]} 9. Nd5 {[%clk 0:16:29]}  Nbd7 {[%clk 0:16:00]} 10. Qd3 {[%clk 0:16:36]}  O-O {[%clk 0:16:05]} 11. O-O-O {[%clk 0:16:42]}  Bxd5 {[%clk 0:14:03]} 12. exd5 {[%clk 0:16:50]}  Nb6 {[%clk 0:13:59]} 13. Kb1 {[%clk 0:16:57]}  Nfxd5 {[%clk 0:10:41]} 14. Bd2 {[%clk 0:17:01]}  Qc8 {[%clk 0:10:30]} 15. Bf3 {[%clk 0:14:12]}  Nf6 {[%clk 0:10:30]} 16. Bg5 {[%clk 0:13:32]}  Re8 {[%clk 0:07:38]} 17. Bxf6 {[%clk 0:12:32]}  Bxf6 {[%clk 0:07:45]} 18. Be4 {[%clk 0:09:10]}  d5 {[%clk 0:06:23]} 19. Bxd5 {[%clk 0:08:06]}  Nxd5 {[%clk 0:06:28]} 20. Qxd5 {[%clk 0:08:13]}  e4 {[%clk 0:06:27]} 21. Qd7 {[%clk 0:05:39]}  Qc4 {[%clk 0:06:04]} 22. Qxb7 {[%clk 0:05:10]}  a5 {[%clk 0:04:35]} 23. Qd5 {[%clk 0:04:59]}  Qe2 {[%clk 0:04:27]} 24. Rhe1 {[%clk 0:04:11]}  Qxf2 {[%clk 0:03:22]} 25. Rxe4 {[%clk 0:03:57]}  a4 {[%clk 0:03:10]} 26. Nc5 {[%clk 0:03:02]}  Rec8 {[%clk 0:02:50]} 27. c3 {[%clk 0:01:20]}  Rab8 {[%clk 0:02:12]} 28. Nd3 {[%clk 0:01:02]}  Qa7 {[%clk 0:01:03]} 29. Rb4 {[%clk 0:00:32]}  a3 {[%clk 0:01:11]} 30. b3 {[%clk 0:00:18]}  Qc7 {[%clk 0:01:13]} 31. Rxb8 {[%clk 0:00:16]}  Rxb8 {[%clk 0:01:21]} 32. c4 {[%clk 0:00:18]}  Rd8 {[%clk 0:01:01]} 33. Qe4 {[%clk 0:00:25]}  h5 {[%clk 0:00:48]} 34. Nf2 {[%clk 0:00:20]}  Rb8 {[%clk 0:00:45]} 35. g3 {[%clk 0:00:19]}  Qa5 {[%clk 0:00:53]} 36. Rd3 {[%clk 0:00:20]}  Qc5 {[%clk 0:00:41]} 37. Nd1 {[%clk 0:00:21]}  Qg1 {[%clk 0:00:35]} 38. Qe2 {[%clk 0:00:18]}  h4 {[%clk 0:00:24]} 39. g4 {[%clk 0:00:16]}  h3 {[%clk 0:00:23]} 40. Kc2 {[%clk 0:00:12]} 1-0


[Site "http://www.chessbomb.com"]

[Event "Meltwater Champions Chess Tour 2022: Chessable Masters | Prelims"]
[White "Shankland, Sam"]
[Black "Vidit, Santosh Gujrathi"]
[WhiteFideId "2004887"]
[BlackFideId "5029465"]
[WhiteElo "2616"]
[BlackElo "2617"]
[Result "0-1"]
[Round "09"]
[TimeControl "900+10"]
[Date "2022.05.21"]
[WhiteClock "0:02:01"]
[BlackClock "0:02:08"]

1. c4 {[%clk 0:15:20]}  e5 {[%clk 0:15:20]} 2. g3 {[%clk 0:15:24]}  Nf6 {[%clk 0:15:27]} 3. Bg2 {[%clk 0:15:33]}  d5 {[%clk 0:15:35]} 4. cxd5 {[%clk 0:15:41]}  Nxd5 {[%clk 0:15:45]} 5. Nf3 {[%clk 0:15:48]}  Nc6 {[%clk 0:15:53]} 6. O-O {[%clk 0:15:55]}  Nb6 {[%clk 0:16:01]} 7. Nc3 {[%clk 0:15:10]}  Be7 {[%clk 0:16:09]} 8. a3 {[%clk 0:14:53]}  O-O {[%clk 0:15:54]} 9. d3 {[%clk 0:14:59]}  Be6 {[%clk 0:15:47]} 10. Be3 {[%clk 0:14:51]}  f5 {[%clk 0:14:47]} 11. Rc1 {[%clk 0:13:35]}  Kh8 {[%clk 0:14:18]} 12. Na4 {[%clk 0:13:14]}  e4 {[%clk 0:11:43]} 13. Ne1 {[%clk 0:12:30]}  Nd5 {[%clk 0:09:03]} 14. Bc5 {[%clk 0:12:28]}  Nf6 {[%clk 0:08:05]} 15. Bxe7 {[%clk 0:09:33]}  Qxe7 {[%clk 0:08:12]} 16. Nc5 {[%clk 0:09:42]}  Bd5 {[%clk 0:08:16]} 17. dxe4 {[%clk 0:08:55]}  fxe4 {[%clk 0:08:23]} 18. Rc3 {[%clk 0:08:00]}  b6 {[%clk 0:06:48]} 19. Nb3 {[%clk 0:08:02]}  Ne5 {[%clk 0:05:35]} 20. Nc2 {[%clk 0:07:33]}  Rad8 {[%clk 0:05:40]} 21. Ne3 {[%clk 0:07:31]}  Bb7 {[%clk 0:05:36]} 22. Qc2 {[%clk 0:07:34]}  c5 {[%clk 0:05:45]} 23. Nd2 {[%clk 0:07:27]}  Nc6 {[%clk 0:05:30]} 24. Nb3 {[%clk 0:04:55]}  Qe6 {[%clk 0:05:36]} 25. Rc4 {[%clk 0:04:06]}  Ba6 {[%clk 0:03:32]} 26. Rxe4 {[%clk 0:04:08]}  Nxe4 {[%clk 0:03:41]} 27. Bxe4 {[%clk 0:04:17]}  Bxe2 {[%clk 0:03:38]} 28. Re1 {[%clk 0:04:02]}  Bf3 {[%clk 0:03:24]} 29. Bf5 {[%clk 0:03:03]}  Qh6 {[%clk 0:03:17]} 30. Nc4 {[%clk 0:02:52]}  Qh5 {[%clk 0:03:10]} 31. Be4 {[%clk 0:02:26]}  Rde8 {[%clk 0:02:54]} 32. Ncd2 {[%clk 0:02:23]}  Ne5 {[%clk 0:02:29]} 33. Re3 {[%clk 0:02:01]}  Bd1 {[%clk 0:02:08]} 0-1


[Site "http://www.chessbomb.com"]